Cogmind - Beta 12 *** ADVENTURER MODE // 2023.08.31 @ 17:31:19 Player: Insono Result: Self-destructed Performance ------------- Evolutions (1) 500 Regions Visited (5) 1000 Robots Destroyed (27) 135 Value Destroyed (783) 783 Prototype IDs (0) 0 Alien Tech Used (0) 0 Bonus (504) 504 TOTAL SCORE: 2922 Bonus ------- Met Imprinter 300 Was Imprinted 300 Friendly Fire -96 Cogmind --------- Core Integrity 284/400 Matter 350/350 Energy 136/170 System Corruption 1% Temperature Warm (156) Movement Treading (160) Location -7/Zion Parts ------- > --- POWER (1) -------- Makeshift Power Source > --- PROPULSION (2) --- Light Treads Light Treads > --- UTILITY (3) ------ Large Storage Unit Small Matter Pod > --- WEAPON (3) ------- Beam Rifle Heavy Assault Rifle Makeshift Hammer > --- INVENTORY (15) --- Ion Engine Light Treads Light Treads Large Storage Unit Huge Storage Unit Improved Targeting Computer Makeshift ECM Suite Light Armor Plating Makeshift Hacking Suite Bomb Factory No. 2 EM Shotgun Mini Grenade Launcher Mini Grenade Launcher Makeshift Sword Peak State ------------ > --- POWER ------------ Makeshift Power Source > --- PROPULSION ------- Light Treads Light Treads > --- UTILITY ---------- Large Storage Unit Small Matter Pod Shield Generator > --- WEAPON ----------- Beam Rifle Heavy Assault Rifle Makeshift Hammer > --- INVENTORY -------- Ion Engine Light Treads Light Treads Large Storage Unit Huge Storage Unit Improved Targeting Computer Makeshift ECM Suite Light Armor Plating Shield Generator Makeshift Hacking Suite Bomb Factory No. 2 EM Shotgun Mini Grenade Launcher Makeshift Sword [Rating: 21] Favorites ----------- Power Light Ion Engine Engine Light Ion Engine Propulsion Light Treads Treads Light Treads Leg Aluminum Leg Utility Large Storage Unit Device Shield Generator Storage Large Storage Unit Protection Light Armor Plating Weapon Makeshift Hammer Energy Gun Beam Rifle Ballistic Gun Heavy Assault Rifle Special Weapon Mining Laser Impact Weapon Makeshift Hammer Build | -11 -10 -10 -9 -9 -7 ------- Run | Jun Mat Min Mat Min Zio Slots Evolved 2 | . . . 2 . . Power . | . . . . . . Propulsion . | . . . . . . Utility 1 | . . . 1 . . Weapon 1 | . . . 1 . . Parts Attached 33 | 6 7 4 13 . 3 Power 4 | 1 . . 2 . 1 Engine 4 | 1 . . 2 . 1 Core . | . . . . . . Reactor . | . . . . . . Propulsion 7 | 2 2 . 2 . 1 Treads 5 | . 2 . 2 . 1 Leg 2 | 2 . . . . . Wheel . | . . . . . . Hover . | . . . . . . Flight . | . . . . . . Utility 9 | 1 3 . 4 . 1 Device 2 | . . . 1 . 1 Storage 5 | 1 2 . 2 . . Processor . | . . . . . . Hackware . | . . . . . . Protection 2 | . 1 . 1 . . Artifact . | . . . . . . Weapon 13 | 2 2 4 5 . . Energy Gun 3 | . 1 1 1 . . Energy Cannon . | . . . . . . Ballistic Gun 7 | 2 1 1 3 . . Ballistic Cannon . | . . . . . . Launcher . | . . . . . . Special Weapon 2 | . . 1 1 . . Impact Weapon 1 | . . 1 . . . Slashing Weapon . | . . . . . . Piercing Weapon . | . . . . . . Special Melee Weapon . | . . . . . . Unidentified Prototypes . | . . . . . . Parts Lost 2 | . . . 1 . 1 Power . | . . . . . . Propulsion . | . . . . . . Utility 2 | . . . 1 . 1 Weapon . | . . . . . . Highest Loss Streak 1 | . . . 1 . 1 To Critical Strikes . | . . . . . . Average Slot Usage (%) 98 | . 88 100 98 100 99 Engine 11 | . 14 14 11 11 11 Treads 22 | . 20 28 22 22 22 Device 5 | . . . . 11 10 Storage 20 | . 14 14 22 22 22 Protection 4 | . 2 14 9 . . Energy Gun 10 | . 12 8 9 11 11 Ballistic Gun 11 | . 15 14 11 11 11 Impact Weapon 9 | . . 4 11 11 11 Naked Turns . | . . . . . . Heaviest Build 38 | 10 30 31 38 37 37 Greatest Support 40 | 20 40 40 40 40 40 Greatest Overweight (x) . | . . . . . . Average Overweight (x) . | . . . . . . Largest Inventory Capacity 15 | 8 15 15 15 15 15 Average Capacity 14 | 7 13 15 15 15 15 Most Carried 15 | 4 13 15 15 15 15 Average Carried 13 | 2 9 13 14 15 14 Final Capacity 15 | 8 15 15 15 15 15 Final Carried 15 | 4 13 14 15 15 15 Class Distribution -------------------- 50% | Mutant 49% | Scavenger-Mutant Dominant Class ---------------- Mutant | -10/Materials Mutant | -10/Mines Mutant | -9/Materials Scavenger-Mutant | -9/Mines Scavenger-Mutant | -7/Zion Resources | -11 -10 -10 -9 -9 -7 ----------- Run | Jun Mat Min Mat Min Zio Matter Collected 715 | 260 . 172 241 . 42 Remotely . | . . . . . . Salvage Created 939 | . 200 172 499 . 68 Parts 58 | . 10 4 39 . 5 Haulers Intercepted 1 | . 1 . . . . Recyclers Shooed 2 | . . . 2 . . Parts Field Recycled . | . . . . . . Retrieved Matter . | . . . . . . Parts Self-Destructed 2 | . . . . . 2 Prevented . | . . . . . . Kills | -11 -10 -10 -9 -9 -7 ------- Run | Jun Mat Min Mat Min Zio Combat Hostiles Destroyed 22 | . 3 4 14 . 1 Melee 4 | . . . 3 . 1 Guns 16 | . 3 2 11 . . AOE 2 | . . 2 . . . Classes Destroyed 8 | . 2 . 4 . 2 Builder 1 | . . . 1 . . Hauler 1 | . 1 . . . . Watcher 2 | . . . 2 . . Swarmer 6 | . . . 6 . . Grunt 10 | . 3 4 3 . . Sentry 5 | . . . 5 . . Zionite 1 | . . . . . 1 Mutant 1 | . . . . . 1 Best Kill Streak 8 | . 2 3 8 . 2 Combat Bots Only 8 | . 2 3 8 . 1 Max Kills in Single Turn 1 | . 1 1 1 . 1 Gunslinging . | . . . . . . Exploded 1 | . . 1 . . . Melee 1 | . . . 1 . 1 Uniques/NPCs Destroyed . | . . . . . . Combat | -11 -10 -10 -9 -9 -7 -------- Run | Jun Mat Min Mat Min Zio Damage Taken 1186 | . 118 227 384 . 457 Core 174 | . 21 37 45 . 71 Absorbed by Shields 73 | . . . 19 . 54 Regen/Repaired (Parts) 85 | . . . 83 . 2 Core Remaining (%) 88 | 100 . 76 . . . Volleys Fired 47 | . 11 9 23 . 4 Largest 2 | . 2 2 2 . 2 Hottest 100 | . 60 100 100 . 79 Shots Fired 90 | . 22 17 43 . 8 Gun 87 | . 22 16 41 . 8 Cannon . | . . . . . . Launcher . | . . . . . . Special 3 | . . 1 2 . . Kinetic 44 | . 11 8 21 . 4 Thermal 27 | . . 1 22 . 4 Explosive . | . . . . . . Electromagnetic 19 | . 11 8 . . . Robot Hit Streak 14 | . 8 12 14 . 10 Robot Miss Streak 2 | . 2 1 2 . . Penetration Max . | . . . . . . Secondary Targets 1 | . . 1 . . . Max Gunslinging Chain 1 | . . 1 . . . Shots Hit Robots 82 | . 16 13 41 . 12 Core Hits 38 | . 8 7 19 . 4 Critical Kills 2 | . . . . . 2 Critical Parts Destroyed . | . . . . . . Critical Strikes 2 | . . . . . 2 Smash 2 | . . . . . 2 Melee Attacks 46 | . . . 22 1 23 Impact 46 | . . . 22 1 23 Slashing . | . . . . . . Piercing . | . . . . . . Sneak Attacks 2 | . . . 1 . 1 Combat Hostiles . | . . . . . . Follow-up Attacks . | . . . . . . Damage Inflicted 1887 | . 280 276 953 . 378 Guns 877 | . 213 150 397 . 117 Cannons . | . . . . . . Explosions 177 | . 51 126 . . . Melee 817 | . . . 556 . 261 Ramming 16 | . 16 . . . . Kinetic 453 | . 107 62 225 . 59 Thermal 407 | . 51 126 172 . 58 Explosive . | . . . . . . Electromagnetic 194 | . 106 88 . . . Impact 817 | . . . 556 . 261 Slashing . | . . . . . . Piercing . | . . . . . . Highest Corruption 1 | . . . . . 1 Average Corruption 1 | . . . . . 1 Corruption Purged . | . . . . . . Corruption Blocked . | . . . . . . Overload Shots . | . . . . . . Overflow Damage 129 | . . . 123 . 6 Projectiles . | . . . . . . Explosions . | . . . . . . Melee 129 | . . . 123 . 6 Knockbacks 2 | . 1 . . . 1 Impact 2 | . 1 . . . 1 Kinetic . | . . . . . . Secondary . | . . . . . . Self-Inflicted Damage 69 | . . 69 . . . Shots 2 | . . 2 . . . Rammed 3 | . 3 . . . . Targets Rammed 3 | . 3 . . . . Kicked . | . . . . . . Crushed . | . . . . . . Highest Temperature 156 | . 99 99 72 . 156 Average Temperature 32 | . 36 34 24 . 72 Received Heat Transfer 416 | . 87 117 126 . 86 Siege Activations . | . . . . . . Robots Corrupted . | . . . . . . Combat Hostiles . | . . . . . . Parts Fried 4 | . . . 4 . . Impact Corruptions 7 | . . . 6 . 1 Robots Melted . | . . . . . . Combat Hostiles . | . . . . . . Parts Melted . | . . . . . . Heat Transferred 842 | . 100 150 444 . 148 Parts Sabotaged . | . . . . . . Parts Stolen . | . . . . . . Parts Stripped . | . . . . . . Power Chain Reactions 3 | . 1 2 . . . Missiles Intercepted . | . . . . . . Alert | -11 -10 -10 -9 -9 -7 ------- Run | Jun Mat Min Mat Min Zio Peak Influence 286 | . 91 159 286 95 . Initial 94 | . . 29 . 94 . Average 54 | . 19 78 56 94 . Maximum Alert Level 1 | . . . 1 . . Low Security (%) 94 | 100 100 100 89 100 . Level 1 5 | . . . 10 . . Level 2 . | . . . . . . Level 3 . | . . . . . . Level 4 . | . . . . . . Level 5 . | . . . . . . High Security . | . . . . . . Max Security . | . . . . . . Squads Dispatched 1 | . . . 1 . . Investigation . | . . . . . . Extermination . | . . . . . . Reinforcement 1 | . . . 1 . . Assault . | . . . . . . Garrison . | . . . . . . Intercept . | . . . . . . Searches Triggered . | . . . . . . Construction Impeded . | . . . . . . Haulers Reinforced . | . . . . . . Active Scanning Responses . | . . . . . . Cargo Convoy Interrupts . | . . . . . . Stealth | -11 -10 -10 -9 -9 -7 --------- Run | Jun Mat Min Mat Min Zio Distress Signals 3 | . 1 . 2 . . Communications Jammed . | . . . . . . Distress Signals . | . . . . . . Times Spotted 47 | . 5 7 28 . 7 Peak Tracking Total 6 | . 3 2 6 . 6 Tactical Retreats 1 | . . 1 . . . Traps | -11 -10 -10 -9 -9 -7 ------- Run | Jun Mat Min Mat Min Zio Traps Triggered . | . . . . . . Indirectly . | . . . . . . Trap Hack Attempts . | . . . . . . Triggered . | . . . . . . Disarmed . | . . . . . . Reprogrammed . | . . . . . . Reused . | . . . . . . Traps Extracted . | . . . . . . Installed . | . . . . . . Triggered . | . . . . . . Machines | -11 -10 -10 -9 -9 -7 ---------- Run | Jun Mat Min Mat Min Zio Machines Disabled 1 | . 1 . . . . Max in Single Turn 1 | . 1 . . . . Machines Repaired . | . . . . . . Machines Sabotaged . | . . . . . . Overloaded Fab Kills . | . . . . . . Hacking | -11 -10 -10 -9 -9 -7 --------- Run | Jun Mat Min Mat Min Zio Machines Accessed 7 | . 2 . 5 . . Terminals 6 | . 2 . 4 . . Fabricators . | . . . . . . Repair Stations 1 | . . . 1 . . Recycling Units . | . . . . . . Scanalyzers . | . . . . . . Garrison Access . | . . . . . . Total Hacks 19 | . 6 . 13 . . Successful 12 | . 4 . 8 . . Failed 7 | . 2 . 5 . . Catastrophic . | . . . . . . Database Lockouts . | . . . . . . Manual . | . . . . . . Terminals 14 | . 6 . 8 . . Fabricators . | . . . . . . Repair Stations 5 | . . . 5 . . Recycling Units . | . . . . . . Scanalyzers . | . . . . . . Garrison Access . | . . . . . . Terminal Hacks 9 | . 4 . 5 . . Record 2 | . 2 . . . . Branch Access Points 2 | . 1 . 1 . . Emergency Access Points 1 | . 1 . . . . Unreport Threat 1 | . . . 1 . . Locate Traps 1 | . . . 1 . . Dispatch Records 1 | . . . 1 . . Zone Layout 1 | . . . 1 . . Fabricator Hacks . | . . . . . . Repair Station Hacks 3 | . . . 3 . . Scan Component 2 | . . . 2 . . Repair 1 | . . . 1 . . Recycling Unit Hacks . | . . . . . . Scanalyzer . | . . . . . . Garrison Access Hacks . | . . . . . . Unauthorized Hacks . | . . . . . . Terminals . | . . . . . . Fabricators . | . . . . . . Repair Stations . | . . . . . . Recycling Units . | . . . . . . Scanalyzers . | . . . . . . Garrison Access . | . . . . . . Data Cores Recovered . | . . . . . . Used . | . . . . . . Hacking Detections 3 | . . . 3 . . Full Trace Events 1 | . . . 1 . . Feedback Events . | . . . . . . Feedback Blocked . | . . . . . . Robot Schematics Acquired . | . . . . . . Robots Built . | . . . . . . Authchips . | . . . . . . Time . | . . . . . . Total Robot Build Rating . | . . . . . . Part Schematics Acquired . | . . . . . . Parts Built . | . . . . . . Authchips . | . . . . . . Time . | . . . . . . Total Part Build Rating . | . . . . . . Parts Repaired 1 | . . . 1 . . Time 26 | . . . 26 . . Parts Recycled . | . . . . . . Recycled Matter . | . . . . . . Retrieved Matter . | . . . . . . Retrieved Components . | . . . . . . Parts Scanalyzed . | . . . . . . Part Schematics Acquired . | . . . . . . Parts Damaged . | . . . . . . Bothacking | -11 -10 -10 -9 -9 -7 ------------ Run | Jun Mat Min Mat Min Zio Used RIF Installer . | . . . . . . Robots Hacked . | . . . . . . Non-combat . | . . . . . . Combat . | . . . . . . Robot Hacks Applied . | . . . . . . Relay Couplers Released . | . . . . . . Fabnet Peak Effective % . | . . . . . . Robots Rewired . | . . . . . . Allies Hacked . | . . . . . . Hacks Repelled . | . . . . . . Allies | -11 -10 -10 -9 -9 -7 -------- Run | Jun Mat Min Mat Min Zio Total Allies 6 | . . . . 2 4 Largest Group 4 | . . . . 2 4 Highest-Rated Group 152 | . . . . 54 152 Highest-Rated Ally 39 | . . . . 31 39 Total Orders . | . . . . . . Ally Attacks . | . . . . . . Total Damage . | . . . . . . Kills . | . . . . . . Allies Corrupted . | . . . . . . Allies Melted . | . . . . . . Intel | -11 -10 -10 -9 -9 -7 ------- Run | Jun Mat Min Mat Min Zio Robot Analysis Total . | . . . . . . Derelict Logs Recovered 3 | . . 2 . . 1 Drone Launches . | . . . . . . Drone Recoveries . | . . . . . . Exploration | -11 -10 -10 -9 -9 -7 ------------- Run | Jun Mat Min Mat Min Zio Turns Passed 4043 | 93 395 435 1157 180 1783 Spaces Moved 2309 | 71 230 243 583 112 1070 Core 6 | 6 . . . . . Treads 2164 | . 156 243 583 112 1070 Legs 139 | 65 74 . . . . Wheels . | . . . . . . Hover . | . . . . . . Flight . | . . . . . . Fastest Speed 50 | 50 120 160 160 160 160 Average Speed 157 | 114 147 160 160 160 160 Slowest Speed 160 | 120 160 160 160 160 160 Overloaded Moves . | . . . . . . Propulsion Burnouts . | . . . . . . Robots Hopped . | . . . . . . Cave-ins Triggered . | . . . . . . Exploration Rate (%) 35 | 5 32 48 40 17 70 Regions Visited 5 Branch Regions 3 Pre-discovered Areas 1 | . . 1 . . . Known Exits Taken 2 | . 1 . 1 . . Unknown Exits Taken 3 | 1 . 1 . 1 . Scrap Searched 2 | . . . . . 2 Spaces Dug 14 | . . 1 10 1 2 Terrain Destroyed 32 | . 4 15 10 1 2 Melee 11 | . . . 8 1 2 Projectile 3 | . . 1 2 . . AOE 18 | . 4 14 . . . Terrain Rammed . | . . . . . . Walls Destroyed . | . . . . . . Machines Disabled . | . . . . . . Actions | -11 -10 -10 -9 -9 -7 --------- Run | Jun Mat Min Mat Min Zio Total 2578 | 80 260 269 745 112 1112 Wait 75 | . . 11 64 . . Move 2304 | 70 229 242 582 111 1070 Hop . | . . . . . . Pick Up 41 | 4 9 2 21 . 5 Fast Attach 9 | 6 1 . 2 . . Attach 8 | . . 1 6 . 1 Detach . | . . . . . . Swap 16 | . 6 3 5 . 2 Drop 29 | . 1 1 20 . 7 Fire 47 | . 11 9 23 . 4 Melee 46 | . . . 22 1 23 Ram . | . . . . . . Kick . | . . . . . . Crush 3 | . 3 . . . . Escape Stasis . | . . . . . . Rewire . | . . . . . . Trap . | . . . . . . Miscellaneous . | . . . . . . Route ------- -11/Junkyard -10/Materials (discovered 2 exits: *Min x2) -10/Mines -9/Materials (discovered 4 exits: *Min x2 / Sto x2) -9/Mines (discovered 2 exits: [*Exi] / *Zio) -7/Zion History --------- Turn | Location | Event 4 | -11/Junkyard | Discovered new exit (range 16) 94 | -11/Junkyard | Entered Materials 244 | -10/Materials | Identified exit to Mines 310 | -10/Materials | Build established: Mutant 489 | -10/Materials | Entered Mines 523 | -10/Mines | Learned location of Recycling (-9) 541 | -10/Mines | Learned Materials trap positions 758 | -10/Mines | A weapon hastily lodged in a ceiling crevice suddenly fell to the ground 821 | -10/Mines | Discovered new exit (range 15) 923 | -10/Mines | Assembled infested the area 924 | -10/Mines | Entered Materials 924 | -9/Materials | Evolved 2 slots: Utility x1, Weapon x1 925 | -9/Materials | Loaded intel: 19 trap records 975 | -9/Materials | Repaired Lgt. Armor Plating 1998 | -9/Materials | Destroyed 8 combat bots 2034 | -9/Materials | Identified exit to Mines 2034 | -9/Materials | Identified exit to Storage 2081 | -9/Materials | Entered Mines 2200 | -9/Mines | A Derelict revealed a hidden shortcut to a safe place 2242 | -9/Mines | Deemed a non-threat by the Exiles lab entrance 2243 | -9/Mines | Discovered new exit (range 5) 2261 | -9/Mines | Entered Zion 2261 | -7/Zion | Accompanied by 2 allies 2311 | -7/Zion | Led the pair of lost Derelicts to a safe place 2358 | -7/Zion | Build established: Scavenger-Mutant 2722 | -7/Zion | Found Prototype Device 3421 | -7/Zion | Imprinted 3424 | -7/Zion | Declared Zion's savior 4023 | -7/Zion | Attacked by Zionites 4044 | -7/Zion | Self-destructed Last Messages --------------- Avoid the area unless you're armed and dangerous. 03870_ D5-QGY(z) pokes at the Twisted Machinery. 04022_ Sneak attack on Z2-R1L(z). 04022_ Destroyed Mak. Leg. 04022_ Z2-R1L(z) system corrupted by crushing effect. 04022_ Z2-R1L(z) knocked back. 04023_ PUBLIC SERVICE ANNOUNCEMENT: Zion is under attack! Defend our home! 04023_ Z2-R1L(z) pulls a Mak. Axe out of the Twisted Machinery. 04026_ Z2-R1L(z) suffers critical hit (Smash). 04026_ Z2-R1L(z) destroyed. 4R-J2B(z) bursts out of the Twisted Machinery. LX-J56(z) bursts out of the Twisted Machinery. 04030_ 05-GQA(M) suffers critical hit (Smash). 04030_ 05-GQA(M) destroyed. 04033_ Acquired 3 matter. 04033_ Shield Generator destroyed. 04036_ Acquired 3 matter. 04039_ Acquired 2 matter. 04042_ 4R-J2B(z) destroyed. 04043_ Acquired 4 matter. Map ----- +----------------------------------------------------+ | """##"?### ####??# =#???????#"" " | | ""#???# # # "##?#! * !###????##"" " | | ""#???# "#### ##"#??###""" | | "###### ""! """## # "####"#""" """ | | ""##""#""" """ """"#"" """" | | ""##"""" """" " ""#" """"" ? | | """""" """ """" " """""" ???? | | "#"#"""????? | | #""""""????? | | #""""??????? | | """"" "" ""#"""""??????? | | """"" " ?????? | | "" "" """ """" ## ## " ????? | | " """"" """" # # " ?????? | | " "#""" "#""""" """ "" ?????? | | " "#""" "##"""" """ #"??????? | | " """"""#" """""" """ ""??????? | | " "##"##"" ""#" # # ""??????? | | ""##"??" "??"" ## ??# " ??????? | | """ ""####"" ??? ? ??? ??????? | | """ "#"" """##""""""?"""""? ???????????? | | """ """" """"#?""???"##"?? ???????????? | | """" ""z """##"#????????? ???????????? | | ""#"" "" """"###????????? ???????????? | | """" "" !""""#?????????????????????? | | #"#""""" "" =%M@"#?????????????????????? | | #""""""""""" MzM"##?????????????????????? | | ?#######"##""""""""""""""##??????????????????????? | | ???????####"##"##"###"##"#???????????????????????? | | ??????????###"#?###?######???????????????????????? | | ????????????##???????????????????????????????????? | | ?????????????????????????????????????????????????? | | ?????????????????????????????????????????????????? | | ?????????????????????????????????????????????????? | | ?????????????????????????????????????????????????? | | ?????????????????????????????????????????????????? | | ?????????????????????????????????????????????????? | | ?????????????????????????????????????????????????? | | ?????????????????????????????????????????????????? | | ?????????????????????????????????????????????????? | | ?????????????????????????????????????????????????? | | ?????????????????????????????????????????????????? | | ?????????????????????????????????????????????????? | | ?????????????????????????????????????????????????? | | ?????????????????????????????????????????????????? | | ?????????????????????????????????????????????????? | | ?????????????????????????????????????????????????? | | ?????????????????????????????????????????????????? | | ?????????????????????????????????????????????????? | | ?????????????????????????????????????????????????? | +----------------------------------------------------+ Best States ------------- Heat Dissipation 28 Energy Generation 15 Energy Capacity 250 Matter Stores 350 Matter Capacity 350 Sight Range 16 Terrain Scan Density 10 Armor Coverage 150 Resistance: KI 20 Resistance: TH 20 Resistance: EX 20 Resistance: EM 20 Resistance: I 20 Resistance: S 20 Resistance: P 20 Evasion (%) 55 Recoil Reduction 2 Offensive Hacking 10 Item Schematics ----------------- None Robot Schematics ------------------ None Fabricated ------------ Nothing Alien Tech Used ----------------- None Achievements -------------- Everything Is Under Control Part-time Excavator Part-time Mechanic Challenges ------------ None Game ------ Seed TiamatMetafieldTendrils Manual? 0 Play Time 00:55:20 Cumulative 9.0 hours Start 2023.08.30 @ 18:28:29 End 2023.08.31 @ 17:31:19 Sessions 5 Manual Loads 0 Difficulty Adventurer Special Mode None Game No. 7 Rogue 0 Adventurer 7 Explorer 0 Win Type - Total 0 Types 0/0/0/0/0/0/0/0/0 Lore% 4 Gallery% 12 Achievement% 12 Wizard Run 0 Options --------- ASCII 0 Keyboard 0 Movement Arrows Keybinds 0 Fullscreen 1 Font 18/Terminus Map View 76x50 Tactical HUD 1 Map Filters NONE Filters NONE Steam 0 RUN: 28495349-871d-4d91-9021-33876874ef4b